fUSD/lending_fUSD_20250123
["ID","MTS","AMOUNT","RATE_DAILY","PERIOD"]
[350110516,1737631848294,-500.0,0.0001671,2]
[350110517,1737631848305,-500.0,0.0001671,2]
[350110518,1737631848315,-500.0,0.0001671,2]
[350110519,1737631848326,-517.8918053,0.0001671,2]
[350110520,1737631848336,-500.0,0.0001671,2]
[350110521,1737631848346,-507.2556422,0.0001671,2]
[350110522,1737631848356,-500.0,0.0001671,2]
[350110523,1737631848365,-500.0,0.0001671,2]
[350110524,1737631848375,-500.0,0.0001671,2]
[350110525,1737631848384,-632.50862155,0.0001671,2]
[350110526,1737631848394,-500.0,0.0001671,2]
[350110527,1737631848403,-549.05180964,0.0001671,2]
[350110528,1737631848412,-500.0,0.0001671,2]
[350110529,1737631848422,-500.0,0.0001671,2]
[350110530,1737631848432,-500.0,0.0001671,2]
[350110531,1737631848441,-500.0,0.0001671,2]
[350110532,1737631848450,-500.0,0.0001671,2]
[350110533,1737631848460,-500.0,0.0001671,2]
[350110534,1737631848472,-500.0,0.0001671,2]
[350110535,1737631848483,-500.0,0.0001671,2]
[350110536,1737631848493,-500.0,0.0001671,2]
[350110537,1737631848503,-500.0,0.0001671,2]
[350110538,1737631848513,-500.0,0.0001671,2]
[350110539,1737631848524,-500.0,0.0001671,2]
[350110540,1737631848533,-500.0,0.0001671,2]
[350110541,1737631848543,-500.0,0.0001671,2]
[350110542,1737631848557,-503.52982369,0.0001671,2]
[350110543,1737631848567,-500.0,0.0001671,2]
[350110544,1737631848578,-500.0,0.0001671,2]
[350110545,1737631848587,-500.0,0.0001671,2]
[350110546,1737631848597,-500.0,0.0001671,2]
[350110547,1737631848608,-261.55182269,0.0001671,2]
[350110548,1737631848618,-500.0,0.0001671,2]
[350110549,1737631848628,-500.0,0.0001671,2]
[350110550,1737631848638,-500.0,0.0001671,2]
[350110551,1737631848648,-500.0,0.0001671,2]
[350110552,1737631848658,-500.0,0.0001671,2]
[350110553,1737631848667,-500.0,0.0001671,2]
[350110554,1737631848677,-500.0,0.0001671,2]
[350110555,1737631848687,-500.0,0.0001671,2]
[350110556,1737631848698,-500.0,0.0001671,2]
[350110557,1737631848707,-500.0,0.0001671,2]
[350110558,1737631848716,-382.69991141,0.0001671,2]
[350110559,1737631848726,-500.0,0.00016712,2]
[350110560,1737631848735,-1318.03,0.00016712,2]
[350110561,1737631848744,-800.67,0.00016712,2]
[350110562,1737631848754,-582.61,0.00016712,2]
[350110563,1737631848763,-1242.97,0.00016712,2]
[350110564,1737631848773,-500.0,0.00016712,2]
[350110565,1737631848783,-1092.65,0.00016712,2]
[350110566,1737631848793,-972.1,0.00016712,2]
[350110567,1737631848806,-500.0,0.00016712,2]
[350110568,1737631848821,-500.0,0.00016712,2]
[350110569,1737631848831,-658.56,0.00016712,2]
[350110570,1737631848840,-925.78,0.00016712,2]
[350110571,1737631848850,-500.0,0.00016712,2]
[350110572,1737631848861,-1692.09,0.00016712,2]
[350110573,1737631848870,-687.03,0.00016712,2]
[350110574,1737631848880,-1428.83,0.00016712,2]
[350110575,1737631848889,-752.15,0.00016712,2]
[350110576,1737631848899,-500.0,0.00016712,2]
[350110577,1737631848909,-653.12,0.00016712,2]
[350110578,1737631848919,-500.0,0.00016712,2]
[350110579,1737631848929,-510.85,0.00016712,2]
[350110580,1737631848943,-1972.66,0.00016712,2]
[350110581,1737631848952,-510.73025092,0.00016712,2]
[350110582,1737631848961,-500.0,0.00016712,2]
[350110583,1737631848970,-500.0,0.00016712,2]
[350110584,1737631848979,-954.9,0.00016712,2]
[350110585,1737631848988,-500.0,0.00016712,2]
[350110586,1737631848998,-500.0,0.00016712,2]
[350110587,1737631849007,-500.0,0.00016712,2]
[350110588,1737631849016,-500.0,0.00016712,2]
[350110589,1737631849027,-500.0,0.00016712,2]
[350110590,1737631849036,-500.0,0.00016712,2]
[350110591,1737631849045,-500.0,0.00016712,2]
[350110592,1737631849057,-1710.84,0.00016712,2]
[350110593,1737631849066,-500.0,0.00016712,2]
[350110594,1737631849080,-500.0,0.00016712,2]
[350110595,1737631849090,-500.0,0.00016712,2]
[350110596,1737631849100,-507.96521856,0.00016712,2]
[350110597,1737631849109,-500.0,0.00016712,2]
[350110598,1737631849118,-500.0,0.00016712,2]
[350110599,1737631849128,-500.0,0.00016712,2]
[350110600,1737631849137,-500.0,0.00016712,2]
[350110601,1737631849146,-500.0,0.00016712,2]
[350110602,1737631849162,-1777.47,0.00016712,2]
[350110603,1737631849180,-503.58474641,0.00016712,2]
[350110604,1737631849196,-500.0,0.00016712,2]
[350110605,1737631849212,-500.0,0.00016712,2]
[350110606,1737631849230,-500.0,0.00016712,2]
[350110607,1737631849247,-500.0,0.00016712,2]
[350110608,1737631849260,-500.0,0.00016712,2]
[350110609,1737631849277,-500.0,0.00016712,2]
[350110610,1737631849293,-194.17,0.00016712,2]
[350110611,1737631849311,-2210.42137,0.0001673,2]
[350110612,1737631849329,-500.81863733,0.00016773,2]
[350110613,1737631849347,-500.0,0.00016773,2]
[350110614,1737631849364,-273.74642053,0.00016783,2]
[350110615,1737631849379,-851.75187032,0.000168,2]
[350110616,1737631849395,-2202.5164,0.000168,2]
[350110617,1737631849415,-182.11342485,0.000168,2]
[350110618,1737631849429,-813.0083152,0.00016808,2]
[350110619,1737631849445,-1446.83,0.0001688,2]
[350110620,1737631849457,-500.0,0.00016883,2]
[350110621,1737631849472,-500.0,0.00016883,2]
[350110622,1737631849486,-582.6,0.00016883,2]
[350110623,1737631849498,-500.0,0.00016883,2]
[350110624,1737631849512,-855.22,0.00016883,2]
[350110625,1737631849525,-500.0,0.00016883,2]
[350110626,1737631849539,-500.0,0.00016883,2]
[350110627,1737631849554,-500.0,0.00016883,2]
[350110628,1737631849567,-500.0,0.00016883,2]
[350110629,1737631849580,-500.0,0.00016883,2]
[350110630,1737631849593,-500.0,0.00016883,2]
[350110631,1737631849607,-500.0,0.00016883,2]
[350110632,1737631849621,-500.0,0.00016883,2]
[350110633,1737631849634,-500.0,0.00016883,2]
[350110634,1737631849649,-500.0,0.00016883,2]
[350110635,1737631849665,-500.0,0.00016883,2]
[350110636,1737631849679,-500.0,0.00016883,2]
[350110637,1737631849692,-500.0,0.00016883,2]
[350110638,1737631849706,-500.0,0.00016883,2]
[350110639,1737631849719,-500.0,0.00016883,2]
[350110640,1737631849732,-500.0,0.00016883,2]
[350110641,1737631849746,-543.077721,0.00016883,2]
[350110642,1737631849760,-500.0,0.00016883,2]
[350110643,1737631849773,-500.0,0.00016883,2]
[350110644,1737631849787,-500.0,0.00016883,2]
[350110645,1737631849800,-500.0,0.00016883,2]
[350110646,1737631849813,-500.0,0.00016883,2]
[350110647,1737631849829,-500.0,0.00016883,2]
[350110648,1737631849843,-500.0,0.00016883,2]
[350110649,1737631849856,-500.0,0.00016883,2]
[350110650,1737631849869,-500.0,0.00016883,2]
[350110651,1737631849885,-500.0,0.00016883,2]
[350110652,1737631849901,-500.0,0.00016883,2]
[350110653,1737631849915,-500.0,0.00016883,2]
[350110654,1737631849930,-500.0,0.00016883,2]
[350110655,1737631849943,-437.805229,0.00016883,2]
[350110656,1737631849956,-500.0,0.00016883,2]
[350110657,1737631849969,-500.0,0.00016883,2]
[350110658,1737631849982,-500.0,0.00016883,2]
[350110659,1737631849994,-500.0,0.00016883,2]
[350110660,1737631850007,-667.49,0.00016883,2]
[350110661,1737631850020,-500.0,0.00016883,2]
[350110662,1737631850032,-500.0,0.00016883,2]
[350110663,1737631850046,-500.0,0.00016883,2]
[350110664,1737631850059,-500.0,0.00016883,2]
[350110665,1737631850072,-500.0,0.00016883,2]
[350110666,1737631850085,-500.0,0.00016883,2]
[350110667,1737631850098,-500.0,0.00016883,2]
[350110668,1737631850111,-500.0,0.00016883,2]
[350110669,1737631850124,-719.4,0.00016883,2]
[350110670,1737631850137,-500.0,0.00016883,2]
[350110671,1737631850150,-500.0,0.00016883,2]
[350110672,1737631850163,-515.22380663,0.00016883,2]
[350110673,1737631850175,-500.0,0.00016883,2]
[350110674,1737631850188,-500.0,0.00016883,2]
[350110675,1737631850200,-500.0,0.00016883,2]
[350110676,1737631850213,-500.0,0.00016883,2]
[350110677,1737631850225,-500.0,0.00016883,2]
[350110678,1737631850238,-500.0,0.00016883,2]
[350110679,1737631850251,-737.61,0.00016883,2]
[350110680,1737631850264,-500.0,0.00016883,2]
[350110681,1737631850279,-500.0,0.00016883,2]
[350110682,1737631850292,-500.0,0.00016883,2]
[350110683,1737631850306,-500.0,0.00016883,2]
[350110684,1737631850318,-497.44198288,0.00016883,2]
[350110685,1737631850326,-500.99393048,0.00016883,2]
[350110686,1737631850336,-673.81,0.00016883,2]
[350110687,1737631850346,-713.2,0.00016883,2]
[350110688,1737631850356,-501.721034,0.00016883,2]
[350110689,1737631850366,-504.5497519,0.00016883,2]
[350110690,1737631850554,-500.0,0.00016883,2]
[350110691,1737631850591,-500.0,0.00016883,2]
[350110692,1737631850602,-500.0,0.00016883,2]
[350110693,1737631850612,-500.0,0.00016883,2]
[350110694,1737631850622,-527.57,0.00016883,2]
[350110695,1737631850631,-500.0,0.00016883,2]
[350110696,1737631850640,-500.0,0.00016883,2]
[350110697,1737631850650,-500.0,0.00016883,2]
[350110698,1737631850659,-904.81,0.00016883,2]
[350110699,1737631850669,-512.28,0.00016883,2]
[350110700,1737631850678,-652.0,0.00016883,2]
[350110701,1737631850688,-500.0,0.00016883,2]
[350110702,1737631850698,-625.78,0.00016883,2]
[350110703,1737631850707,-500.0,0.00016883,2]
[350110704,1737631850718,-645.78,0.00016883,2]
[350110705,1737631850728,-1131.37,0.00016883,2]
[350110706,1737631850737,-505.40641816,0.00016883,2]
[350110707,1737631850747,-504.47660298,0.00016883,2]
[350110708,1737631850756,-1105.02,0.00016883,2]
[350110709,1737631850766,-500.0,0.00016883,2]
[350110710,1737631850775,-500.0,0.00016883,2]
[350110711,1737631850784,-1944.2,0.00016883,2]
[350110712,1737631850794,-502.13380173,0.00016883,2]
[350110713,1737631850805,-532.34,0.00016883,2]
[350110714,1737631850819,-500.0,0.00016883,2]
[350110715,1737631850828,-500.0,0.00016883,2]
[350110716,1737631850837,-2163.66,0.00016883,2]
[350110717,1737631850847,-500.0,0.00016883,2]
[350110718,1737631850858,-500.0,0.00016883,2]
[350110719,1737631850867,-500.0,0.00016883,2]
[350110720,1737631850876,-995.69,0.00016883,2]
[350110721,1737631850885,-500.0,0.00016883,2]
[350110722,1737631850895,-916.66,0.00016883,2]
[350110723,1737631850904,-812.58,0.00016883,2]
[350110724,1737631850914,-500.0,0.00016883,2]
[350110725,1737631850923,-1854.35,0.00016883,2]
[350110726,1737631850932,-500.0,0.00016883,2]
[350110727,1737631850941,-790.5,0.00016883,2]
[350110728,1737631850950,-500.0,0.00016883,2]
[350110729,1737631850960,-675.61,0.00016883,2]
[350110730,1737631850970,-852.8,0.00016883,2]
[350110731,1737631850980,-803.09,0.00016883,2]
[350110732,1737631850989,-1285.67,0.00016883,2]
[350110733,1737631850998,-1768.09,0.00016883,2]
[350110734,1737631851007,-1031.57,0.00016883,2]
[350110735,1737631851018,-508.69,0.00016883,2]
[350110736,1737631851027,-877.89,0.00016883,2]
[350110737,1737631851037,-1493.29,0.00016883,2]
[350110738,1737631851046,-500.0,0.00016883,2]
[350110739,1737631851060,-2841.48,0.00016883,2]
[350110740,1737631851069,-596.18,0.00016883,2]
[350110741,1737631851079,-2654.63,0.00016883,2]
[350110742,1737631851088,-500.0,0.00016883,2]
[350110743,1737631851098,-781.31,0.00016883,2]
[350110744,1737631851106,-1128.38,0.00016883,2]
[350110745,1737631851116,-500.0,0.00016883,2]
[350110746,1737631851127,-1575.92,0.00016883,2]
[350110747,1737631851137,-890.82,0.00016883,2]
[350110748,1737631851146,-1605.95,0.00016883,2]
[350110749,1737631851156,-2638.3,0.00016883,2]
[350110750,1737631851166,-989.57,0.00016883,2]
[350110751,1737631851175,-503.8154052,0.00016883,2]
[350110752,1737631851184,-863.75,0.00016883,2]
[350110753,1737631851194,-1663.2,0.00016883,2]
[350110754,1737631851204,-500.0,0.00016883,2]
[350110755,1737631851213,-514.56334969,0.00016883,2]
[350110756,1737631851223,-500.0,0.00016883,2]
[350110757,1737631851232,-903.48,0.00016883,2]
[350110758,1737631851241,-849.01,0.00016883,2]
[350110759,1737631851251,-2145.38,0.00016883,2]
[350110760,1737631851260,-500.0,0.00016883,2]
[350110761,1737631851271,-500.0,0.00016883,2]
[350110762,1737631851281,-3049.12,0.00016883,2]
[350110763,1737631851291,-500.0,0.00016883,2]
[350110764,1737631851301,-500.0,0.00016883,2]
[350110765,1737631851311,-500.0,0.00016883,2]
[350110766,1737631851320,-500.0,0.00016883,2]
[350110767,1737631851329,-1568.47,0.00016883,2]
[350110768,1737631851339,-500.0,0.00016883,2]
[350110769,1737631851349,-500.0,0.00016883,2]
[350110770,1737631851359,-500.0,0.00016883,2]
[350110771,1737631851368,-938.99,0.00016883,2]
[350110772,1737631851378,-598.62,0.00016883,2]
[350110773,1737631851387,-907.35,0.00016883,2]
[350110774,1737631851396,-2004.77,0.00016883,2]
[350110775,1737631851407,-1108.37,0.00016883,2]
[350110776,1737631851417,-500.0,0.00016883,2]
[350110777,1737631851426,-500.0,0.00016883,2]
[350110778,1737631851435,-500.0,0.00016883,2]
[350110779,1737631851444,-500.0,0.00016883,2]
[350110780,1737631851454,-500.0,0.00016883,2]
[350110781,1737631851463,-500.0,0.00016883,2]
[350110782,1737631851473,-500.0,0.00016883,2]
[350110783,1737631851483,-1096.79,0.00016883,2]
[350110784,1737631851492,-762.96,0.00016883,2]
[350110785,1737631851502,-1619.91,0.00016883,2]
[350110786,1737631851512,-613.59,0.00016883,2]
[350110787,1737631851521,-577.57,0.00016883,2]
[350110788,1737631851531,-2795.0,0.00016883,2]
[350110789,1737631851541,-500.0,0.00016898,2]
[350110790,1737631851551,-500.0,0.00016898,2]
[350110791,1737631851560,-500.0,0.00016898,2]
[350110792,1737631851569,-500.0,0.00016898,2]
[350110793,1737631851579,-500.0,0.00016898,2]
[350110794,1737631851588,-500.0,0.00016898,2]
[350110795,1737631851597,-500.0,0.00016898,2]
[350110796,1737631851606,-500.0,0.00016898,2]
[350110797,1737631851615,-500.0,0.00016898,2]
[350110798,1737631851625,-500.0,0.00016898,2]
[350110799,1737631851634,-382.64,0.00016898,2]
[350110800,1737631851643,-1006.26165683,0.00016899,5]
[350110801,1737631851653,-200.82654529,0.00016899,5]
[350110802,1737631851662,-1006.26165683,0.00016899,5]
[350110803,1737631851671,-1006.26165683,0.00016899,5]
[350110804,1737631851681,-1006.26165682,0.00016899,5]
[350110805,1737631851690,-500.0,0.00016899,2]
[350110806,1737631851699,-500.0,0.00016899,2]
[350110807,1737631851708,-500.0,0.00016899,2]
[350110808,1737631851718,-500.0,0.00016899,2]
[350110809,1737631851727,-500.0,0.00016899,2]
[350110810,1737631851736,-500.0,0.00016899,2]
[350110811,1737631851746,-500.0,0.00016899,2]
[350110812,1737631851755,-500.0,0.00016899,2]
[350110813,1737631851765,-1543192.80843715,0.000169,5]
[350110814,1737631852058,-16077.77762039,0.000169,5]
[350110815,1737631852210,-500.0,0.00016438,2]
[350110816,1737631852220,-164.31148884,0.00016708,2]
[350110817,1737631852236,-335.68851116,0.00016708,2]
[350110818,1737631852246,-500.0,0.00016712,2]
[350110819,1737631852255,-966.18606384,0.000169,5]
[350110820,1737631852266,-1526.265,0.000169,5]
[350110821,1737631852303,-502.55220202,0.000169,5]
[350110822,1737631852324,-1542.44495864,0.000169,5]
[350110823,1737631852335,-511.8985665,0.000169,5]
[350110824,1737631852347,-153742.23375438,0.000169,5]
[350110825,1737631852356,-3092.34,0.000169,2]
[350110826,1737631852366,-200.0,0.000169,2]
[350110827,1737631852375,-200.0,0.000169,2]
[350110828,1737631852385,-525.19522392,0.00016934,2]
[350110829,1737631852394,-500.0,0.00016981,2]
[350110830,1737631852404,-723.2,0.00016981,2]
[350110831,1737631852413,-500.0,0.00016981,2]
[350110832,1737631852423,-500.0,0.00016981,2]
[350110833,1737631852432,-500.0,0.00016981,2]
[350110834,1737631852442,-685.2,0.00016981,2]
[350110835,1737631852451,-863.07,0.00016981,2]
[350110836,1737631852460,-910.82,0.00016981,2]
[350110837,1737631852470,-500.0,0.00016981,2]
[350110838,1737631852479,-1325.4,0.00016981,2]
[350110839,1737631852489,-1016.78,0.00016981,2]
[350110840,1737631852498,-2418.71,0.00016981,2]
[350110841,1737631852507,-4482.12,0.00016981,2]
[350110842,1737631852517,-902.93,0.00016981,2]
[350110843,1737631852526,-874.19,0.00016981,2]
[350110844,1737631852536,-2079.62,0.00016981,2]
[350110845,1737631852545,-500.0,0.00016981,2]
[350110846,1737631852556,-1130.39,0.00016981,2]
[350110847,1737631852566,-500.0,0.00016982,2]
[350110848,1737631852576,-504.98329249,0.00016982,2]
[350110849,1737631852585,-502.78550559,0.00016982,2]
[350110850,1737631852594,-259.96818915,0.00016982,2]
[350110851,1737631852603,-500.0,0.00016982,2]
[350110852,1737631852613,-500.0,0.00016982,2]
[350110853,1737631852622,-503.13500614,0.00016982,2]
[350110854,1737631852631,-503.38814756,0.00016982,2]
[350110855,1737631852641,-500.0,0.00016982,2]
[350110856,1737631852651,-500.0,0.00016982,2]
[350110857,1737631852662,-491.66669598,0.00016982,2]
[350110858,1737631852672,-500.0,0.00016982,2]
[350110859,1737631852681,-500.0,0.00016982,2]
[350110860,1737631852691,-500.0,0.00016982,2]
[350110861,1737631852700,-509.14562188,0.00016982,2]
[350110862,1737631852710,-500.0,0.00016982,2]
[350110863,1737631852719,-513.07732426,0.00016982,2]
[350110864,1737631852729,-500.0,0.00016982,2]
[350110865,1737631852739,-500.0,0.00016982,2]
[350110866,1737631852748,-500.0,0.00016982,2]
[350110867,1737631852757,-500.0,0.00016982,2]
[350110868,1737631852767,-500.0,0.00016982,2]
[350110869,1737631852776,-500.0,0.00016982,2]
[350110870,1737631852786,-500.0,0.00016982,2]
[350110871,1737631852796,-500.0,0.00016982,2]
[350110872,1737631852806,-500.0,0.00016982,2]
[350110873,1737631852818,-500.0,0.00016982,2]
[350110874,1737631852828,-500.0,0.00016982,2]
[350110875,1737631852837,-500.0,0.00016982,2]
[350110876,1737631852846,-500.0,0.00016982,2]
[350110877,1737631852856,-500.0,0.00016982,2]
[350110878,1737631852867,-500.0,0.00016982,2]
[350110879,1737631852876,-500.0,0.00016982,2]
[350110880,1737631852886,-500.0,0.00016982,2]
[350110881,1737631852897,-500.0,0.00016982,2]
[350110882,1737631852906,-500.0,0.00016982,2]
[350110883,1737631852915,-500.0,0.00016982,2]
[350110884,1737631852925,-500.0,0.00016982,2]
[350110885,1737631852934,-500.0,0.00016982,2]
[350110886,1737631852944,-500.0,0.00016982,2]
[350110887,1737631852954,-500.0,0.00016982,2]
[350110888,1737631852963,-500.0,0.00016982,2]
[350110889,1737631853130,-500.0,0.00016982,2]
[350110890,1737631853140,-500.0,0.00016982,2]
[350110891,1737631853150,-500.0,0.00016982,2]
[350110892,1737631853160,-500.0,0.00016982,2]
[350110893,1737631853169,-501.14716916,0.00016982,2]
[350110894,1737631853179,-500.0,0.00016982,2]
[350110895,1737631853188,-500.0,0.00016982,2]
[350110896,1737631853198,-500.0,0.00016982,2]
[350110897,1737631853207,-500.0,0.00016982,2]
[350110898,1737631853216,-503.82783903,0.00016982,2]
[350110899,1737631853226,-500.0,0.00016982,2]
[350110900,1737631853236,-500.0,0.00016982,2]
[350110901,1737631853245,-500.0,0.00016982,2]
[350110902,1737631853255,-500.0,0.00016982,2]
[350110903,1737631853265,-519.48780748,0.00016982,2]
[350110904,1737631853275,-500.0,0.00016982,2]
[350110905,1737631853284,-500.0,0.00016982,2]
[350110906,1737631853293,-511.54576198,0.00016982,2]
[350110907,1737631853304,-500.0,0.00016982,2]
[350110908,1737631853313,-523.48362237,0.00016982,2]
[350110909,1737631853323,-200.0,0.00016982,2]
[350110910,1737631853332,-500.0,0.00016982,2]
[350110911,1737631853342,-500.0,0.00016982,2]
[350110912,1737631853351,-500.0,0.00016982,2]
[350110913,1737631853359,-500.0,0.00016982,2]
[350110914,1737631853369,-158.5500469,0.00016982,2]
[350110915,1737631853378,-500.0,0.00016982,2]
[350110916,1737631853388,-510.92384993,0.00016982,2]
[350110917,1737631853397,-500.0,0.00016982,2]
[350110918,1737631853406,-510.85951079,0.00016982,2]
[350110919,1737631853415,-500.0,0.00016982,2]
[350110920,1737631853425,-511.24374601,0.00016982,2]
[350110921,1737631853434,-510.67939963,0.00016982,2]
[350110922,1737631853443,-500.0,0.00016982,2]
[350110923,1737631853453,-500.0,0.00016982,2]
[350110924,1737631853463,-500.0,0.00016982,2]
[350110925,1737631853473,-515.63509389,0.00016982,2]
[350110926,1737631853483,-500.0,0.00016982,2]
[350110927,1737631853493,-623.65033216,0.00016982,2]
[350110928,1737631853503,-500.0,0.00016982,2]
[350110929,1737631853512,-500.0,0.00016982,2]
[350110930,1737631853522,-500.0,0.00016982,2]
[350110931,1737631853531,-500.0,0.00016982,2]
[350110932,1737631853541,-500.0,0.00016982,2]
[350110933,1737631853550,-500.0,0.00016982,2]
[350110934,1737631853559,-500.0,0.00016982,2]
[350110935,1737631853568,-500.0,0.00016982,2]
[350110936,1737631853577,-500.0,0.00016982,2]
[350110937,1737631853587,-500.0,0.00016982,2]
[350110938,1737631853597,-500.0,0.00016982,2]
[350110939,1737631853608,-505.02391426,0.00016982,2]
[350110940,1737631853618,-500.0,0.00016982,2]
[350110941,1737631853628,-503.17647593,0.00016982,2]
[350110942,1737631853637,-514.19180077,0.00016982,2]
[350110943,1737631853649,-503.18469331,0.00016982,2]
[350110944,1737631853659,-500.0,0.00016982,2]
[350110945,1737631853669,-503.00110896,0.00016982,2]
[350110946,1737631853678,-511.85901273,0.00016982,2]
[350110947,1737631853687,-625.63,0.00016982,2]
[350110948,1737631853697,-500.0,0.00016982,2]
[350110949,1737631853706,-255.40596412,0.00016982,2]
[350110950,1737631853716,-500.0,0.00016982,2]
[350110951,1737631853725,-500.0,0.00016982,2]
[350110952,1737631853735,-500.0,0.00016982,2]
[350110953,1737631853745,-508.08096814,0.00016982,2]
[350110954,1737631853754,-264.50407099,0.00016982,2]
[350110955,1737631853764,-500.0,0.00016982,2]
[350110956,1737631853775,-500.0,0.00016982,2]
[350110957,1737631853784,-500.0,0.00016982,2]
[350110958,1737631853794,-500.0,0.00016982,2]
[350110959,1737631853806,-500.0,0.00016982,2]
[350110960,1737631853817,-500.0,0.00016982,2]
[350110961,1737631853829,-295.01119464,0.00016982,2]
[350110962,1737631853839,-500.0,0.00016982,2]
[350110963,1737631853849,-500.0,0.00016982,2]
[350110964,1737631853859,-500.0,0.00016982,2]
[350110965,1737631853870,-500.0,0.00016982,2]
[350110966,1737631853879,-500.0,0.00016982,2]
[350110967,1737631853889,-500.0,0.00016982,2]
[350110968,1737631853900,-500.0,0.00016982,2]
[350110969,1737631853910,-500.0,0.00016982,2]
[350110970,1737631853919,-500.0,0.00016982,2]
[350110971,1737631853930,-500.0,0.00016982,2]
[350110972,1737631853940,-500.0,0.00016982,2]
[350110973,1737631853951,-500.0,0.00016982,2]
[350110974,1737631853960,-500.0,0.00016982,2]
[350110975,1737631853970,-500.0,0.00016982,2]
[350110976,1737631853981,-500.0,0.00016982,2]
[350110977,1737631853993,-500.0,0.00016982,2]
[350110978,1737631854002,-500.0,0.00016982,2]
[350110979,1737631854012,-511.39253591,0.00016982,2]
[350110980,1737631854020,-500.0,0.00016982,2]
[350110981,1737631854028,-500.0,0.00016982,2]
[350110982,1737631854038,-252.38174962,0.00016982,2]
[350110983,1737631854047,-500.0,0.00016982,2]
[350110984,1737631854057,-500.0,0.00016982,2]
[350110985,1737631854066,-500.0,0.00016982,2]
[350110986,1737631854076,-500.0,0.00016982,2]
[350110987,1737631854085,-500.0,0.00016982,2]
[350110988,1737631854094,-507.37510429,0.00016982,2]
[350110989,1737631854104,-510.39228709,0.00016982,2]
[350110990,1737631854114,-500.0,0.00016982,2]
[350110991,1737631854126,-500.0,0.00016982,2]
[350110992,1737631854136,-500.0,0.00016982,2]
[350110993,1737631854146,-500.0,0.00016982,2]
[350110994,1737631854156,-500.0,0.00016982,2]
[350110995,1737631854166,-500.0,0.00016982,2]
[350110996,1737631854175,-500.0,0.00016982,2]
[350110997,1737631854185,-500.0,0.00016982,2]
[350110998,1737631854194,-500.0,0.00016982,2]
[350110999,1737631854204,-500.0,0.00016982,2]
[350111000,1737631854213,-500.0,0.00016982,2]
[350111001,1737631854223,-500.0,0.00016982,2]
[350111002,1737631854232,-500.0,0.00016982,2]
[350111003,1737631854241,-500.0,0.00016982,2]
[350111004,1737631854250,-500.0,0.00016982,2]
[350111005,1737631854260,-500.0,0.00016982,2]
[350111006,1737631854270,-500.0,0.00016982,2]
[350111007,1737631854279,-500.0,0.00016982,2]
[350111008,1737631854289,-500.0,0.00016982,2]
[350111009,1737631854298,-500.0,0.00016982,2]
[350111010,1737631854310,-500.0,0.00016982,2]
[350111011,1737631854319,-500.0,0.00016982,2]
[350111012,1737631854329,-500.0,0.00016982,2]
[350111013,1737631854338,-363.31281082,0.00016982,2]
[350111014,1737631854348,-500.0,0.00016982,2]
[350111015,1737631854358,-496.2,0.00016982,2]